[Event "NJSK 2023 Meisjes C"]
[Site "Almelo, Netherlands"]
[Date "2023.05.05"]
[Round "6.3"]
[White "Fu, Janice"]
[Black "Grigoriu, Eva"]
[Result "1-0"]
[TimeControl "90min/40moves + 30min + 30sec/move"]
[WhiteElo "1408"]
[BlackElo "1045"]

1. e4 {[%clk 01:30:57]} {[%emt 00:00:02]} e5 {[%clk 01:30:56]} {[%emt
00:00:03]} 2. Nf3 {[%clk 01:31:24]} {[%emt 00:00:04]} Nc6 {[%clk 01:31:15]}
{[%emt 00:00:13]} 3. Bc4 {[%clk 01:31:44]} {[%emt 00:00:08]} Bc5 {[%clk
01:31:26]} {[%emt 00:00:18]} 4. c3 {[%clk 01:32:03]} {[%emt 00:00:11]} h6
{[%clk 01:31:35]} {[%emt 00:00:21]} 5. d4 {[%clk 01:25:29]} {[%emt 00:07:04]}
exd4 {[%clk 01:30:53]} {[%emt 00:01:13]} 6. cxd4 {[%clk 01:25:52]} {[%emt
00:00:07]} Bb6 {[%clk 01:29:25]} {[%emt 00:01:57]} 7. Nc3 {[%clk 01:25:40]}
{[%emt 00:00:42]} d6 {[%clk 01:28:23]} {[%emt 00:01:32]} 8. Be3 {[%clk
01:23:45]} {[%emt 00:02:25]} Bg4 {[%clk 01:26:27]} {[%emt 00:02:26]} 9. Bb5
{[%clk 01:23:28]} {[%emt 00:00:47]} Bd7 {[%clk 01:25:57]} {[%emt 00:00:59]} 10.
O-O {[%clk 01:22:35]} {[%emt 00:01:24]} Nge7 {[%clk 01:25:50]} {[%emt
00:00:36]} 11. Re1 {[%clk 01:21:31]} {[%emt 00:01:35]} O-O {[%clk 01:25:32]}
{[%emt 00:00:47]} 12. h3 {[%clk 01:19:32]} {[%emt 00:02:30]} a6 {[%clk
01:22:38]} {[%emt 00:03:24]} 13. Ba4 {[%clk 01:17:53]} {[%emt 00:02:09]} Ba7
{[%clk 01:20:14]} {[%emt 00:02:53]} 14. Bxc6 {[%clk 01:13:17]} {[%emt
00:05:07]} Bxc6 {[%clk 01:20:31]} {[%emt 00:00:13]} 15. d5 {[%clk 01:12:48]}
{[%emt 00:00:59]} Bd7 {[%clk 01:20:42]} {[%emt 00:00:19]} 16. Bxa7 {[%clk
01:11:31]} {[%emt 00:01:48]} Rxa7 {[%clk 01:21:06]} {[%emt 00:00:05]} 17. Nd4
{[%clk 01:10:37]} {[%emt 00:01:24]} c5 {[%clk 01:18:32]} {[%emt 00:03:04]} 18.
Nde2 {[%clk 01:07:03]} {[%emt 00:04:04]} Ng6 {[%clk 01:16:51]} {[%emt
00:02:12]} 19. Ng3 {[%clk 01:04:27]} {[%emt 00:03:05]} Qf6 {[%clk 01:14:35]}
{[%emt 00:02:45]} 20. Qd2 {[%clk 01:00:57]} {[%emt 00:03:59]} Re8 {[%clk
01:11:56]} {[%emt 00:03:10]} 21. Rf1 {[%clk 00:57:02]} {[%emt 00:04:26]} Qh4
{[%clk 01:06:31]} {[%emt 00:05:43]} 22. Nge2 {[%clk 00:45:59]} {[%emt
00:11:45]} b5 {[%clk 01:04:40]} {[%emt 00:02:21]} 23. f3 {[%clk 00:42:39]}
{[%emt 00:03:51]} b4 {[%clk 01:02:33]} {[%emt 00:02:36]} 24. Nd1 {[%clk
00:42:34]} {[%emt 00:00:35]} Bb5 {[%clk 01:01:04]} {[%emt 00:01:58]} 25. a4
{[%clk 00:40:46]} {[%emt 00:02:19]} Bd7 {[%clk 01:00:06]} {[%emt 00:01:28]} 26.
Ne3 {[%clk 00:39:47]} {[%emt 00:01:29]} Ne5 {[%clk 00:56:37]} {[%emt 00:03:59]}
27. Ng4 {[%clk 00:34:54]} {[%emt 00:05:23]} Nc4 {[%clk 00:53:19]} {[%emt
00:03:47]} 28. Qc2 {[%clk 00:33:38]} {[%emt 00:01:46]} Bxg4 {[%clk 00:53:22]}
{[%emt 00:00:29]} 29. Qxc4 {[%clk 00:33:45]} {[%emt 00:00:23]} Bd7 {[%clk
00:53:14]} {[%emt 00:00:37]} 30. Qd3 {[%clk 00:31:41]} {[%emt 00:02:34]} Re5
{[%clk 00:51:24]} {[%emt 00:02:20]} 31. f4 {[%clk 00:30:56]} {[%emt 00:01:15]}
Re8 {[%clk 00:51:36]} {[%emt 00:00:18]} 32. b3 {[%clk 00:30:09]} {[%emt
00:01:17]} Qh5 {[%clk 00:50:17]} {[%emt 00:01:44]} 33. Ng3 {[%clk 00:28:47]}
{[%emt 00:01:57]} Qh4 {[%clk 00:49:05]} {[%emt 00:01:42]} 34. Qf3 {[%clk
00:27:54]} {[%emt 00:01:22]} Bc8 {[%clk 00:46:46]} {[%emt 00:02:48]} 35. Rae1
{[%clk 00:24:06]} {[%emt 00:04:20]} Rae7 {[%clk 00:44:12]} {[%emt 00:03:05]} 36.
Re2 {[%clk 00:19:28]} {[%emt 00:05:08]} g6 {[%clk 00:41:14]} {[%emt 00:03:26]}
37. f5 {[%clk 00:17:30]} {[%emt 00:02:29]} gxf5 {[%clk 00:33:50]} {[%emt
00:07:54]} 38. Nxf5 {[%clk 00:16:43]} {[%emt 00:01:17]} Bxf5 {[%clk 00:34:14]}
{[%emt 00:00:06]} 39. Qxf5 {[%clk 00:16:53]} {[%emt 00:00:20]} Kg7 {[%clk
00:30:54]} {[%emt 00:03:47]} 40. Rf4 {[%clk 00:15:22]} {[%emt 00:02:04]} Qxf4
{[%clk 00:25:53]} {[%emt 00:05:32]} 41. Qxf4 {[%clk 00:15:42]} {[%emt
00:00:10]} Rd8 {[%clk 00:25:57]} {[%emt 00:00:25]} 42. Rf2 {[%clk 00:15:40]}
{[%emt 00:00:32]} Rdd7 {[%clk 00:26:09]} {[%emt 00:00:19]} 43. Qf6+ {[%clk
00:15:18]} {[%emt 00:00:51]} Kh7 {[%clk 00:25:59]} {[%emt 00:00:40]} 44. Rf3
{[%clk 00:15:07]} {[%emt 00:00:41]} Re8 {[%clk 00:25:34]} {[%emt 00:00:54]} 45.
Rg3 {[%clk 00:15:09]} {[%emt 00:00:29]} Rg8 {[%clk 00:25:47]} {[%emt 00:00:17]}
46. Qf5+ {[%clk 00:15:27]} {[%emt 00:00:11]} Kh8 {[%clk 00:26:01]} {[%emt
00:00:17]} 47. Rxg8+ {[%clk 00:15:45]} {[%emt 00:00:13]} Kxg8 {[%clk 00:26:25]}
{[%emt 00:00:05]} 48. Qxd7 {[%clk 00:16:08]} {[%emt 00:00:07]} Kg7 {[%clk
00:26:48]} {[%emt 00:00:07]} 49. Qxd6 {[%clk 00:16:14]} {[%emt 00:00:23]} a5
{[%clk 00:27:11]} {[%emt 00:00:08]} 50. Qe5+ {[%clk 00:16:27]} {[%emt
00:00:16]} f6 {[%clk 00:27:05]} {[%emt 00:00:37]} 51. Qe7+ {[%clk 00:16:49]}
{[%emt 00:00:09]} Kg6 {[%clk 00:27:26]} {[%emt 00:00:08]} 52. d6 {[%clk
00:16:59]} {[%emt 00:00:20]} c4 {[%clk 00:27:52]} {[%emt 00:00:04]} 53. bxc4
{[%clk 00:17:22]} {[%emt 00:00:07]} b3 {[%clk 00:28:19]} {[%emt 00:00:02]} 54.
Qb7 {[%clk 00:17:39]} {[%emt 00:00:12]} h5 {[%clk 00:28:43]} {[%emt 00:00:07]}
55. d7 {[%clk 00:17:59]} {[%emt 00:00:11]} b2 {[%clk 00:29:03]} {[%emt
00:00:11]} 56. Qxb2 {[%clk 00:18:16]} {[%emt 00:00:12]} h4 {[%clk 00:29:26]}
{[%emt 00:00:05]} 57. d8=Q {[%clk 00:18:33]} {[%emt 00:00:14]} Kh5 {[%clk
00:29:42]} {[%emt 00:00:14]} 58. Qh8+ {[%clk 00:18:47]} {[%emt 00:00:16]} Kg6
{[%clk 00:30:05]} {[%emt 00:00:07]} 59. Qbxf6# {[%clk 00:18:37]} {[%emt
00:00:06]} 1-0

[Event "NJSK 2023 Meisjes C"]
[Site "Almelo, Netherlands"]
[Date "2023.05.05"]
[Round "6.4"]
[White "Ganeshram, Niranjana"]
[Black "Liu, Chia-Yun"]
[Result "0-1"]
[TimeControl "90min/40moves + 30min + 30sec/move"]
[WhiteElo "775"]
[BlackElo "1470"]

1. e4 {[%clk 01:30:58]} {[%emt 00:00:02]} e5 {[%clk 01:30:55]} {[%emt
00:00:05]} 2. Nf3 {[%clk 01:31:24]} {[%emt 00:00:05]} Nc6 {[%clk 01:31:19]}
{[%emt 00:00:06]} 3. Bc4 {[%clk 01:31:39]} {[%emt 00:00:14]} Bc5 {[%clk
01:31:25]} {[%emt 00:00:25]} 4. Bb3 {[%clk 01:31:52]} {[%emt 00:00:17]} Nf6
{[%clk 01:30:18]} {[%emt 00:01:37]} 5. Nxe5 {[%clk 01:32:02]} {[%emt 00:00:20]}
Bxf2+ {[%clk 01:17:50]} {[%emt 00:12:58]} 6. Kxf2 {[%clk 01:32:03]} {[%emt
00:00:28]} Nxe4+ {[%clk 01:13:40]} {[%emt 00:04:40]} 7. Ke3 {[%clk 01:32:15]}
{[%emt 00:00:19]} Qg5+ {[%clk 01:13:02]} {[%emt 00:01:08]} 8. Kxe4 {[%clk
01:29:43]} {[%emt 00:03:01]} Nxe5 {[%clk 01:10:21]} {[%emt 00:03:12]} 9. d4
{[%clk 01:28:51]} {[%emt 00:01:22]} d5+ {[%clk 01:03:47]} {[%emt 00:07:04]} 10.
Kxd5 {[%clk 01:27:53]} {[%emt 00:01:26]} Be6+ {[%clk 01:01:47]} {[%emt
00:02:32]} 11. Ke4 {[%clk 01:24:33]} {[%emt 00:03:49]} Qf5+ {[%clk 00:49:41]}
{[%emt 00:12:37]} 12. Ke3 {[%clk 01:24:38]} {[%emt 00:00:25]} Ng4+ {[%clk
00:47:42]} {[%emt 00:02:29]} 13. Kd2 {[%clk 01:23:25]} {[%emt 00:01:43]} Rd8
{[%clk 00:45:48]} {[%emt 00:02:25]} 14. c3 {[%clk 01:21:36]} {[%emt 00:02:19]}
Qf4+ {[%clk 00:43:56]} {[%emt 00:02:21]} 15. Kc2 {[%emt 00:01:02]} Bf5+ {[%clk
00:43:55]} {[%emt 00:00:30]} 16. Qd3 {[%clk 01:20:25]} {[%emt 00:01:10]} Qf2+
{[%clk 00:42:02]} {[%emt 00:02:23]} 17. Bd2 {[%clk 01:20:38]} {[%emt 00:00:17]}
Ne3+ {[%clk 00:41:48]} {[%emt 00:00:44]} 18. Kc1 {[%clk 01:20:52]} {[%emt
00:00:15]} Bxd3 {[%clk 00:42:01]} {[%emt 00:00:18]} 19. Na3 {[%clk 01:20:50]}
{[%emt 00:00:33]} Nf1 {[%clk 00:41:16]} {[%emt 00:01:14]} 20. Ba4+ {[%clk
01:20:40]} {[%emt 00:00:40]} c6 {[%clk 00:40:34]} {[%emt 00:01:12]} 21. Bxc6+
{[%clk 01:20:31]} {[%emt 00:00:24]} bxc6 {[%clk 00:40:09]} {[%emt 00:01:11]} 22.
Nb1 {[%clk 01:20:44]} {[%emt 00:00:16]} Bxb1 {[%clk 00:40:04]} {[%emt
00:00:36]} 23. Kxb1 {[%clk 01:20:58]} {[%emt 00:00:15]} Nxd2+ {[%clk 00:40:04]}
{[%emt 00:00:31]} 24. Kc1 {[%clk 01:21:15]} {[%emt 00:00:13]} Nc4 {[%clk
00:40:11]} {[%emt 00:00:22]} 0-1

[Event "NJSK 2023 Meisjes C"]
[Site "Almelo, Netherlands"]
[Date "2023.05.05"]
[Round "6.5"]
[White "Regterschot, Frederieke"]
[Black "Hardeman, Imara"]
[Result "1-0"]
[TimeControl "90min/40moves + 30min + 30sec/move"]
[WhiteElo "966"]
[BlackElo "920"]

1. d4 {[%clk 01:30:59]} {[%emt 00:00:02]} c6 {[%clk 01:30:56]} {[%emt
00:00:04]} 2. c4 {[%clk 01:31:13]} {[%emt 00:00:16]} d6 {[%clk 01:31:24]}
{[%emt 00:00:05]} 3. Nf3 {[%clk 01:31:23]} {[%emt 00:00:16]} Bg4 {[%clk
01:31:47]} {[%emt 00:00:07]} 4. Nc3 {[%clk 01:31:13]} {[%emt 00:00:41]} Qc7
{[%clk 01:32:10]} {[%emt 00:00:07]} 5. g3 {[%clk 01:31:32]} {[%emt 00:00:11]}
e5 {[%clk 01:31:52]} {[%emt 00:00:47]} 6. d5 {[%clk 01:29:54]} {[%emt
00:02:08]} Nd7 {[%clk 01:31:16]} {[%emt 00:01:06]} 7. Bg2 {[%clk 01:29:41]}
{[%emt 00:00:43]} Ngf6 {[%clk 01:30:36]} {[%emt 00:01:09]} 8. O-O {[%clk
01:28:46]} {[%emt 00:01:25]} Be7 {[%clk 01:30:20]} {[%emt 00:00:47]} 9. Re1
{[%clk 01:28:19]} {[%emt 00:00:56]} O-O {[%clk 01:30:04]} {[%emt 00:00:46]} 10.
Qc2 {[%clk 01:27:34]} {[%emt 00:01:15]} Rfe8 {[%clk 01:27:52]} {[%emt
00:02:43]} 11. Bg5 {[%clk 01:24:08]} {[%emt 00:03:57]} h6 {[%clk 01:26:23]}
{[%emt 00:01:59]} 12. Bxf6 {[%clk 01:23:02]} {[%emt 00:01:34]} Nxf6 {[%clk
01:26:28]} {[%emt 00:00:25]} 13. Rac1 {[%clk 01:22:18]} {[%emt 00:01:15]} Rac8
{[%clk 01:23:40]} {[%emt 00:03:18]} 14. Qd3 {[%clk 01:20:48]} {[%emt 00:02:00]}
Bf8 {[%clk 01:20:38]} {[%emt 00:03:32]} 15. e4 {[%clk 01:21:04]} {[%emt
00:00:14]} Qd7 {[%clk 01:17:26]} {[%emt 00:03:41]} 16. b4 {[%clk 01:18:11]}
{[%emt 00:03:23]} Rc7 {[%clk 01:07:21]} {[%emt 00:10:36]} 17. Na4 {[%clk
01:09:00]} {[%emt 00:09:41]} Rec8 {[%clk 00:55:09]} {[%emt 00:12:41]} 18. Nc3
{[%clk 01:07:43]} {[%emt 00:01:48]} Qe7 {[%clk 00:47:45]} {[%emt 00:07:54]} 19.
a4 {[%clk 01:01:06]} {[%emt 00:07:06]} Nd7 {[%clk 00:46:32]} {[%emt 00:01:43]}
20. a5 {[%clk 00:59:19]} {[%emt 00:02:17]} b6 {[%clk 00:41:58]} {[%emt
00:05:04]} 21. axb6 {[%clk 00:57:37]} {[%emt 00:02:12]} axb6 {[%clk 00:42:10]}
{[%emt 00:00:19]} 22. Nd2 {[%clk 00:54:55]} {[%emt 00:03:11]} c5 {[%clk
00:38:46]} {[%emt 00:03:54]} 23. b5 {[%clk 00:54:07]} {[%emt 00:01:19]} Qg5
{[%clk 00:37:51]} {[%emt 00:01:25]} 24. Rf1 {[%clk 00:50:17]} {[%emt 00:04:20]}
Qh5 {[%clk 00:34:02]} {[%emt 00:04:19]} 25. f4 {[%clk 00:49:57]} {[%emt
00:00:49]} f5 {[%clk 00:21:15]} {[%emt 00:13:17]} 26. fxe5 {[%clk 00:49:29]}
{[%emt 00:00:58]} fxe4 {[%clk 00:19:42]} {[%emt 00:02:04]} 27. Qxe4 {[%clk
00:47:24]} {[%emt 00:02:35]} Nxe5 {[%clk 00:19:03]} {[%emt 00:01:08]} 28. Nf3
{[%clk 00:44:55]} {[%emt 00:03:00]} Nxf3+ {[%clk 00:18:35]} {[%emt 00:00:58]}
29. Bxf3 {[%clk 00:45:15]} {[%emt 00:00:10]} Bxf3 {[%clk 00:18:58]} {[%emt
00:00:06]} 30. Rxf3 {[%clk 00:45:00]} {[%emt 00:00:45]} Qg5 {[%clk 00:17:18]}
{[%emt 00:02:13]} 31. Rcf1 {[%clk 00:45:11]} {[%emt 00:00:16]} Be7 {[%clk
00:16:37]} {[%emt 00:01:11]} 32. Qe6+ {[%clk 00:43:26]} {[%emt 00:02:14]} Kh8
{[%clk 00:16:37]} {[%emt 00:00:30]} 33. Rf7 {[%clk 00:42:14]} {[%emt 00:01:42]}
Ra8 {[%clk 00:14:04]} {[%emt 00:03:04]} 34. Ne4 {[%clk 00:42:09]} {[%emt
00:00:34]} Qe5 {[%clk 00:13:37]} {[%emt 00:00:58]} 35. Qxe5 {[%clk 00:41:33]}
{[%emt 00:01:06]} dxe5 {[%emt 00:00:18]} 36. d6 {[%clk 00:41:41]} {[%emt
00:00:13]} Bxd6 {[%clk 00:12:01]} {[%emt 00:02:26]} 37. Nxd6 {[%clk 00:40:15]}
{[%emt 00:01:57]} Rxf7 {[%clk 00:11:59]} {[%emt 00:00:32]} 38. Rxf7 {[%clk
00:40:26]} {[%emt 00:00:18]} Ra1+ {[%clk 00:07:29]} {[%emt 00:05:00]} 39. Kg2
{[%clk 00:39:50]} {[%emt 00:01:06]} Ra2+ {[%clk 00:05:23]} {[%emt 00:02:37]} 40.
Kh3 {[%clk 00:39:58]} {[%emt 00:00:22]} Rc2 {[%clk 00:05:33]} {[%emt 00:00:19]}
41. Re7 {[%clk 00:39:56]} {[%emt 00:00:32]} Re2 {[%clk 00:05:23]} {[%emt
00:00:40]} 42. Nf7+ {[%clk 00:39:47]} {[%emt 00:00:40]} Kh7 {[%clk 00:05:37]}
{[%emt 00:00:15]} 43. Rxe5 {[%clk 00:39:54]} {[%emt 00:00:23]} Rc2 {[%clk
00:00:37]} {[%emt 00:05:30]} 44. Nd6 {[%clk 00:39:42]} {[%emt 00:00:42]} Rd2
{[%clk 00:29:43]} {[%emt 00:01:24]} 45. Nc8 {[%clk 01:09:57]} {[%emt 00:00:16]}
Kg6 {[%clk 00:29:46]} {[%emt 00:00:26]} 46. Nxb6 {[%clk 01:10:16]} {[%emt
00:00:11]} Kf6 {[%clk 00:29:48]} {[%emt 00:00:28]} 47. Rxc5 {[%clk 01:10:36]}
{[%emt 00:00:10]} g5 {[%clk 00:29:53]} {[%emt 00:00:25]} 48. Nd5+ {[%clk
01:10:26]} {[%emt 00:00:40]} Kg6 {[%clk 00:30:07]} {[%emt 00:00:16]} 49. b6
{[%clk 01:10:32]} {[%emt 00:00:24]} h5 {[%clk 00:29:39]} {[%emt 00:00:58]} 50.
Ne3 {[%clk 01:10:39]} {[%emt 00:00:21]} g4+ {[%clk 00:29:19]} {[%emt 00:00:52]}
51. Nxg4 {[%clk 01:11:02]} {[%emt 00:00:06]} hxg4+ {[%clk 00:29:39]} {[%emt
00:00:11]} 52. Kxg4 {[%clk 01:11:28]} {[%emt 00:00:04]} Rd4+ {[%clk 00:29:58]}
{[%emt 00:00:12]} 53. Kh3 {[%clk 01:11:39]} {[%emt 00:00:17]} Rd3 {[%clk
00:30:06]} {[%emt 00:00:23]} 54. b7 {[%clk 01:11:59]} {[%emt 00:00:10]} Rb3
{[%clk 00:30:31]} {[%emt 00:00:06]} 55. Rc7 {[%clk 01:12:19]} {[%emt 00:00:10]}
Kf6 {[%clk 00:30:53]} {[%emt 00:00:07]} 56. c5 {[%clk 01:12:41]} {[%emt
00:00:08]} Ke6 {[%clk 00:31:10]} {[%emt 00:00:13]} 57. c6 {[%clk 01:13:03]}
{[%emt 00:00:08]} Kd6 {[%clk 00:31:25]} {[%emt 00:00:16]} 58. Rc8 {[%clk
01:13:25]} {[%emt 00:00:08]} Rxb7 {[%clk 00:31:00]} {[%emt 00:00:54]} 59. cxb7
{[%clk 01:13:45]} {[%emt 00:00:11]} Kd5 {[%clk 00:31:19]} {[%emt 00:00:11]} 60.
b8=Q {[%clk 01:14:02]} {[%emt 00:00:13]} Kd4 {[%clk 00:31:24]} {[%emt
00:00:24]} 61. Re8 {[%clk 01:14:15]} {[%emt 00:00:17]} Kd5 {[%emt 00:00:39]}
1-0

[Event "NJSK 2023 Meisjes C"]
[Site "Almelo, Netherlands"]
[Date "2023.05.05"]
[Round "6.6"]
[White "Luong, Thao"]
[Black "Rutten, Lenthe"]
[Result "1/2-1/2"]
[TimeControl "90min/40moves + 30min + 30sec/move"]
[WhiteElo "804"]
[BlackElo "604"]

1. e4 {[%clk 01:30:59]} c5 {[%clk 01:30:55]} {[%emt 00:00:06]} 2. Nf3 {[%clk
01:31:25]} {[%emt 00:00:04]} Nc6 {[%clk 01:31:09]} {[%emt 00:00:17]} 3. d4
{[%clk 01:31:17]} {[%emt 00:00:36]} cxd4 {[%clk 01:30:53]} {[%emt 00:00:46]} 4.
Nxd4 {[%clk 01:31:42]} {[%emt 00:00:05]} Nxd4 {[%clk 01:31:12]} {[%emt
00:00:11]} 5. Qxd4 {[%clk 01:32:08]} {[%emt 00:00:05]} Nf6 {[%clk 01:30:55]}
{[%emt 00:00:46]} 6. Be2 {[%clk 01:31:36]} {[%emt 00:01:02]} g6 {[%clk
01:30:38]} {[%emt 00:00:48]} 7. e5 {[%clk 01:31:30]} {[%emt 00:00:35]} Ng8
{[%clk 01:30:34]} {[%emt 00:00:32]} 8. e6 {[%clk 01:30:36]} {[%emt 00:01:24]}
Nf6 {[%clk 01:30:15]} {[%emt 00:00:51]} 9. exf7+ {[%clk 01:30:54]} {[%emt
00:00:12]} Kxf7 {[%clk 01:30:22]} {[%emt 00:00:23]} 10. Bg5 {[%clk 01:30:07]}
{[%emt 00:01:16]} Bg7 {[%clk 01:30:18]} {[%emt 00:00:35]} 11. Nc3 {[%clk
01:28:06]} {[%emt 00:02:31]} Re8 {[%clk 01:29:15]} {[%emt 00:01:33]} 12. Bc4+
{[%clk 01:27:02]} {[%emt 00:01:35]} e6 {[%clk 01:28:50]} {[%emt 00:00:55]} 13.
Qf4 {[%clk 01:26:09]} {[%emt 00:01:16]} Kg8 {[%clk 01:27:55]} {[%emt 00:01:31]}
14. g4 {[%clk 01:24:15]} {[%emt 00:02:23]} d5 {[%clk 01:25:22]} {[%emt
00:03:04]} 15. Bb5 {[%clk 01:22:22]} {[%emt 00:02:23]} e5 {[%clk 01:23:30]}
{[%emt 00:02:23]} 16. Qf3 {[%clk 01:20:52]} {[%emt 00:01:47]} Bxg4 {[%clk
01:21:09]} {[%emt 00:03:03]} 17. Qxg4 {[%clk 01:19:35]} {[%emt 00:01:48]} Nxg4
{[%clk 01:21:18]} {[%emt 00:00:21]} 18. Bxd8 {[%clk 01:19:50]} {[%emt
00:00:14]} Rexd8 {[%clk 01:21:13]} {[%emt 00:00:35]} 19. h3 {[%clk 01:19:16]}
{[%emt 00:01:04]} Nf6 {[%clk 01:20:24]} {[%emt 00:01:19]} 20. O-O-O {[%clk
01:19:07]} {[%emt 00:00:39]} Ne4 {[%clk 01:17:59]} {[%emt 00:02:56]} 21. Nxe4
{[%clk 01:18:28]} {[%emt 00:01:08]} dxe4 {[%clk 01:18:15]} {[%emt 00:00:14]} 22.
Rd7 {[%clk 01:17:07]} {[%emt 00:01:52]} Rxd7 {[%clk 01:17:22]} {[%emt
00:01:24]} 23. Bxd7 {[%clk 01:17:31]} {[%emt 00:00:05]} Bh6+ {[%clk 01:17:28]}
{[%emt 00:00:24]} 24. Kb1 {[%clk 01:17:26]} {[%emt 00:00:33]} e3 {[%clk
01:16:52]} {[%emt 00:01:08]} 25. fxe3 {[%clk 01:16:39]} {[%emt 00:01:16]} Bxe3
{[%clk 01:16:57]} {[%emt 00:00:25]} 26. Re1 {[%clk 01:16:26]} {[%emt 00:00:35]}
Rd8 {[%clk 01:16:28]} {[%emt 00:01:07]} 27. Be6+ {[%clk 01:16:19]} {[%emt
00:00:37]} Kg7 {[%clk 01:16:28]} {[%emt 00:00:30]} 28. a3 {[%clk 01:15:58]}
{[%emt 00:00:51]} Bf4 {[%clk 01:16:05]} {[%emt 00:00:54]} 29. Re4 {[%clk
01:14:44]} {[%emt 00:01:43]} Rd4 {[%clk 01:15:06]} {[%emt 00:01:30]} 30. Rxd4
{[%clk 01:12:39]} {[%emt 00:02:35]} exd4 {[%clk 01:15:29]} {[%emt 00:00:07]} 31.
Ka2 {[%clk 01:12:36]} {[%emt 00:00:32]} Kf6 {[%clk 01:15:50]} {[%emt 00:00:08]}
32. Bc8 {[%clk 01:12:40]} {[%emt 00:00:26]} b6 {[%clk 01:15:59]} {[%emt
00:00:22]} 33. Kb3 {[%clk 01:12:54]} {[%emt 00:00:16]} Kg5 {[%clk 01:16:12]}
{[%emt 00:00:17]} 34. Kc4 {[%clk 01:13:07]} {[%emt 00:00:15]} Be5 {[%clk
01:15:56]} {[%emt 00:00:48]} 35. Kb5 {[%clk 01:13:17]} {[%emt 00:00:20]} Kf4
{[%clk 01:15:38]} {[%emt 00:00:48]} 36. Ka6 {[%clk 01:13:21]} {[%emt 00:00:27]}
d3 {[%clk 01:15:12]} {[%emt 00:00:56]} 37. cxd3 {[%clk 01:13:06]} {[%emt
00:00:45]} Bxb2 {[%clk 01:15:22]} {[%emt 00:00:19]} 38. a4 {[%clk 01:13:07]}
{[%emt 00:00:31]} Ke3 {[%clk 01:15:16]} {[%emt 00:00:35]} 39. Kxa7 {[%clk
01:12:54]} {[%emt 00:00:43]} Kxd3 {[%clk 01:15:25]} {[%emt 00:00:21]} 40. Kxb6
{[%clk 01:13:10]} {[%emt 00:00:13]} Kc4 {[%clk 01:15:08]} {[%emt 00:00:48]} 41.
a5 {[%clk 01:13:07]} {[%emt 00:00:33]} Bd4+ {[%clk 01:14:47]} {[%emt 00:00:50]}
42. Kb7 {[%clk 01:12:59]} {[%emt 00:00:38]} Kb5 {[%clk 01:14:30]} {[%emt
00:00:47]} 43. a6 {[%clk 01:13:17]} {[%emt 00:00:12]} h5 {[%clk 01:14:18]}
{[%emt 00:00:42]} 44. Bd7+ {[%clk 01:13:16]} {[%emt 00:00:31]} Kc4 {[%clk
01:14:19]} {[%emt 00:00:30]} 45. Be8 {[%clk 01:13:21]} {[%emt 00:00:22]} Kd5
{[%clk 01:14:28]} {[%emt 00:00:24]} 46. Bxg6 {[%clk 01:13:25]} {[%emt
00:00:25]} h4 {[%clk 01:14:35]} {[%emt 00:00:23]} 47. Bf5 {[%clk 01:12:56]}
{[%emt 00:00:58]} Ke5 {[%clk 01:14:49]} {[%emt 00:00:17]} 48. Bc8 {[%clk
01:13:05]} {[%emt 00:00:21]} Kf6 {[%clk 01:14:57]} {[%emt 00:00:23]} 49. Kc6
{[%clk 01:12:03]} {[%emt 00:01:31]} Ke7 {[%clk 01:14:04]} {[%emt 00:01:24]} 50.
Kd5 {[%clk 01:11:34]} {[%emt 00:00:57]} Ba7 {[%clk 01:13:31]} {[%emt 00:01:04]}
51. Kc6 {[%clk 01:11:01]} {[%emt 00:01:03]} Kf6 {[%clk 01:12:59]} {[%emt
00:01:03]} 52. Kb7 {[%clk 01:10:01]} {[%emt 00:01:30]} Bc5 {[%clk 01:13:13]}
{[%emt 00:00:16]} 53. a7 {[%clk 01:10:18]} {[%emt 00:00:14]} Bxa7 {[%clk
01:13:36]} {[%emt 00:00:06]} 54. Kxa7 {[%emt 00:00:08]} Ke5 {[%emt 00:00:09]}
55. Kb6 {[%clk 01:10:14]} {[%emt 00:00:16]} Kd6 {[%clk 01:13:52]} {[%emt
00:00:14]} 56. Bg4 {[%clk 01:10:23]} {[%emt 00:00:21]} Kd5 {[%clk 01:13:51]}
{[%emt 00:00:31]} 57. Kc7 {[%clk 01:10:29]} {[%emt 00:00:23]} Ke5 {[%emt
00:00:18]} 58. Kd7 {[%clk 01:10:42]} {[%emt 00:00:14]} Kf6 {[%clk 01:14:22]}
{[%emt 00:00:15]} 59. Kd6 {[%clk 01:10:54]} {[%emt 00:00:16]} Kg6 {[%clk
01:14:33]} {[%emt 00:00:21]} 60. Ke6 {[%clk 01:10:52]} {[%emt 00:00:33]} Kg7
{[%clk 01:14:14]} {[%emt 00:00:49]} 61. Kf5 {[%clk 01:10:59]} {[%emt 00:00:22]}
Kh8 {[%clk 01:14:36]} {[%emt 00:00:08]} 62. Kg5 {[%clk 01:11:05]} {[%emt
00:00:24]} Kg7 {[%clk 01:14:58]} {[%emt 00:00:09]} 63. Kxh4 {[%clk 01:11:17]}
{[%emt 00:00:16]} Kh8 {[%clk 01:15:21]} {[%emt 00:00:08]} 64. Kg5 {[%clk
01:10:46]} {[%emt 00:01:00]} Kg7 {[%clk 01:15:37]} {[%emt 00:00:15]} 65. h4
{[%clk 01:09:36]} {[%emt 00:01:41]} Kh7 {[%clk 01:15:59]} {[%emt 00:00:07]} 66.
Be6 {[%clk 01:08:02]} {[%emt 00:02:04]} Kg7 {[%clk 01:16:16]} {[%emt 00:00:13]}
67. h5 {[%clk 01:07:54]} {[%emt 00:00:38]} Kh7 {[%clk 01:16:41]} {[%emt
00:00:05]} 68. Kf6 {[%clk 01:05:50]} {[%emt 00:02:32]} Kh6 {[%clk 01:16:50]}
{[%emt 00:00:24]} 69. Bf7 {[%clk 01:06:07]} {[%emt 00:00:12]} Kh7 {[%clk
01:17:12]} {[%emt 00:00:08]} 70. Ke7 {[%clk 01:04:13]} {[%emt 00:02:24]} Kg7
{[%clk 01:17:21]} {[%emt 00:00:21]} 71. Ke8 {[%clk 01:03:36]} {[%emt 00:01:07]}
Kh8 {[%clk 01:17:35]} {[%emt 00:00:16]} 72. Kf8 {[%clk 01:02:48]} {[%emt
00:01:17]} Kh7 {[%clk 01:17:26]} {[%emt 00:00:41]} 73. Be8 {[%clk 01:02:17]}
{[%emt 00:01:01]} Kh8 {[%clk 01:17:45]} {[%emt 00:00:11]} 74. Kf7 {[%clk
01:01:16]} {[%emt 00:01:31]} Kh7 {[%clk 01:18:07]} {[%emt 00:00:08]} 75. Kf6
{[%clk 01:01:33]} {[%emt 00:00:13]} Kh8 {[%clk 01:18:29]} {[%emt 00:00:08]} 76.
h6 {[%clk 01:01:21]} {[%emt 00:00:41]} Kh7 {[%clk 01:18:38]} {[%emt 00:00:22]}
77. Kg5 {[%clk 01:01:41]} {[%emt 00:00:09]} Kh8 {[%clk 01:18:46]} {[%emt
00:00:22]} 78. Bg6 {[%clk 01:01:16]} {[%emt 00:00:54]} Kg8 {[%emt 00:00:07]} 79.
h7+ {[%emt 00:00:47]} Kh8 {[%clk 01:18:17]} {[%emt 00:00:07]} 80. Kf5 {[%clk
01:01:17]} {[%emt 00:00:28]} Kg7 {[%clk 01:18:40]} {[%emt 00:00:07]} 81. Ke6
{[%clk 01:01:14]} {[%emt 00:00:30]} Kh8 {[%clk 01:19:08]} {[%emt 00:00:06]} 82.
Ke7 {[%clk 01:01:27]} {[%emt 00:00:16]} Kg7 {[%clk 01:19:37]} {[%emt 00:00:02]}
1/2-1/2